lending/lending_fUSD_20250927
["ID","MTS","AMOUNT","RATE_DAILY","PERIOD"]
[387858237,1758931269907,525.33,0.00030136,120]
[387858238,1758931270234,525.33,0.00030136,120]
[387858239,1758931270475,525.33,0.00030136,120]
[387858240,1758931270867,525.33,0.00030136,120]
[387858241,1758931271141,525.33,0.00030136,120]
[387858242,1758931271611,525.33,0.00030136,120]
[387858243,1758931271814,525.33,0.00030136,120]
[387858244,1758931272498,525.33,0.00030136,120]
[387858245,1758931272645,525.33,0.00030136,120]
[387858246,1758931272883,525.33,0.00030136,120]
[387858247,1758931273180,525.33,0.00030136,120]
[387858248,1758931273726,525.33,0.00030136,120]
[387858249,1758931274007,525.33,0.00030136,120]
[387858250,1758931274195,525.33,0.00030136,120]
[387858251,1758931274434,525.33,0.00030136,120]
[387858252,1758931274786,525.33,0.00030136,120]
[387858253,1758931275336,525.33,0.00030136,120]
[387858254,1758931275807,525.33,0.00030136,120]
[387858255,1758931276170,525.33,0.00030136,120]
[387858256,1758931276853,525.33,0.00030136,120]
[387858257,1758931277023,525.33,0.00030136,120]
[387858258,1758931277248,525.33,0.00030136,120]
[387858259,1758931277526,525.33,0.00030136,120]
[387858260,1758931278132,525.46,0.00030136,120]
[387858264,1758931364979,500.0,0.00030136,120]
[387858265,1758931391949,153.98,9.435e-05,2]
[387858266,1758931406680,250.0,0.00010378,2]
[387858267,1758931407114,300.0,0.00014059,2]
[387858268,1758931407202,172.84888557,0.00016839,2]
[387858269,1758931407559,2500.0,0.00016839,2]
[387858270,1758931407933,2500.0,0.00016839,2]
[387858271,1758931407999,2500.0,0.00016839,2]
[387858272,1758931408451,150.0,0.00010378,2]
[387858273,1758931411560,2000.0,0.00013879,2]
[387858274,1758931411594,2000.0,0.00013879,2]
[387858275,1758931411734,2000.0,0.00013879,2]
[387858276,1758931411896,26675.672436,7.945e-05,2]
[387858277,1758931445263,500.0,0.00030136,120]
[387858278,1758931447365,499.13,0.00030136,120]
[387858279,1758931549915,500.0,0.00030136,120]
[387858280,1758931550051,400.0,0.00030136,120]
[387858281,1758931550128,500.0,0.00030136,120]
[387858282,1758931586778,400.0,0.00030136,120]
[387860048,1758931854793,-300.0,0.00018682,2]
[387860050,1758931854803,-300.0,0.00018682,2]
[387860052,1758931854811,-1200.0,0.00018682,2]
[387860054,1758931854821,-164.79902585,0.00018682,2]
[387860055,1758931854831,-1949.38830534,0.00018683,2]
[387860058,1758931854841,-250.0,0.00018683,2]
[387860060,1758931854851,-500.0,0.00018683,2]
[387860061,1758931854861,-500.0,0.00018683,2]
[387860064,1758931854872,-500.50438652,0.00018683,2]
[387860066,1758931854882,-233.23037456,0.00018683,2]
[387860068,1758931854892,-500.0,0.00018683,2]
[387860070,1758931854901,-500.0,0.00018683,2]
[387860072,1758931854910,-274.56750546,0.00018683,2]
[387860074,1758931854919,-305.53123113,0.00018683,2]
[387860076,1758931854933,-195.0,0.00018683,2]
[387860078,1758931854942,-2055.13,0.00018684,5]
[387860080,1758931854953,-195.0,0.00018695,2]
[387860082,1758931854963,-250.72,0.00018701,2]
[387860084,1758931854973,-172.58,0.00018724,2]
[387860086,1758931854983,-354.7,0.00018762,2]
[387860088,1758931854992,-153.98,0.00018869,2]
[387860090,1758931855003,-5008.33988712,0.00018878,2]
[387860092,1758931855013,-51499.56,0.00018879,2]
[387860094,1758931855022,-201.93286099,0.00018881,2]
[387860096,1758931855032,-200.0,0.00019054,2]
[387860098,1758931855042,-150.0,0.000191,7]
[387860100,1758931855051,-806.23,0.000191,2]
[387860102,1758931855065,-471.65,0.000191,2]
[387860103,1758931855083,-600.0,0.00019178,2]
[387860106,1758931855093,-544.52,0.00019178,2]
[387860108,1758931855103,-337.77,0.00019178,2]
[387860109,1758931855112,-583.0372022,0.00019303,2]
[387860112,1758931855122,-167.57,0.00019507,2]
[387860114,1758931855131,-168.0,0.00019603,2]
[387860115,1758931855141,-152.18,0.00019632,2]
[387860118,1758931855151,-598.145,0.00019684,2]
[387860119,1758931855160,-11339.90669706,0.00019684,2]
[387860122,1758931855172,-7565.09330294,0.00019684,2]
[387860124,1758931855181,-347.0,0.00019699,2]
[387860126,1758931855191,-828.83211,0.000198,2]
[387860128,1758931855200,-2591.58913321,0.00019854,2]
[387860130,1758931855209,-399.4657756,0.00019866,2]
[387860157,1758931855471,-2192.12335761,0.00019866,2]
[387860159,1758931855480,-171.31695788,0.000199,2]
[387860161,1758931855489,-500.0,0.000199,2]
[387860163,1758931855499,-500.0,0.000199,2]
[387860165,1758931855508,-141.55938451,0.000199,2]
[387860167,1758931855519,-358.44061549,0.000199,2]
[387860169,1758931855528,-360.93443636,0.000199,2]
[387860180,1758931855627,-4179.0,0.00019684,2]
[387860204,1758931855865,-139.06556364,0.000199,2]
[387860207,1758931855885,-401.61115888,0.000199,2]
[387860209,1758931855895,-3027.65207139,0.000199,2]
[387860211,1758931855905,-5000.0,0.000199,2]
[387860213,1758931855915,-828.83211,0.000199,2]
[387860215,1758931855924,-166.37716703,0.000199,2]
[387860217,1758931855934,-3041.40246385,0.000199,2]
[387860219,1758931855944,-2591.58913321,0.0001993,2]
[387860221,1758931855953,-2591.58913321,0.00019932,2]
[387860223,1758931855963,-2591.58913321,0.00019939,2]
[387860225,1758931855972,-2591.58913321,0.00019939,2]
[387860227,1758931855983,-2591.58913321,0.0001996,2]
[387860229,1758931855993,-172.58,0.00019972,2]
[387860231,1758931856001,-500.0,0.00019973,2]
[387860233,1758931856010,-178.7908924,0.00019973,2]
[387860234,1758931856020,-500.0,0.00019973,2]
[387860236,1758931856029,-500.0,0.00019973,2]
[387860238,1758931856038,-500.0,0.00019973,2]
[387860240,1758931856047,-500.0,0.00019973,2]
[387860242,1758931856057,-500.0,0.00019973,2]
[387860244,1758931856067,-500.0,0.00019973,2]
[387860246,1758931856076,-564.1226213,0.00019973,2]
[387860248,1758931856085,-500.0,0.00019973,2]
[387860250,1758931856095,-500.0,0.00019973,2]
[387860252,1758931856104,-500.0,0.00019973,2]
[387860254,1758931856115,-514.54308761,0.00019973,2]
[387860256,1758931856123,-524.7124,0.00019973,2]
[387860258,1758931856133,-160.65615786,0.00019989,2]
[387860260,1758931856142,-151.0,0.00019997,2]
[387860262,1758931856151,-5815.5450948,0.00019998,2]
[387860264,1758931856161,-4812.8622259,0.00019998,2]
[387860265,1758931856171,-1927.0315059,0.00019998,2]
[387860267,1758931856180,-209.91346886,0.00019999,2]
[387860269,1758931856189,-2085.54268917,0.0002,2]
[387860271,1758931856198,-150.0,0.0002,2]
[387860273,1758931856207,-150.0,0.0002,2]
[387860275,1758931856216,-2904.18578116,0.0002,2]
[387860277,1758931856225,-2608.90622392,0.0002,2]
[387860279,1758931856235,-150.0,0.0002,2]
[387860281,1758931856244,-3317.81,0.0002,2]
[387860283,1758931856254,-277451.17860232,0.0002,2]
[387860285,1758931856263,-8961.1474267,0.0002,2]
[387860287,1758931856272,-150.0,0.0002,2]
[387860289,1758931856281,-5000.0,0.0002,2]
[387860291,1758931856291,-500.0,0.0002,2]
[387860293,1758931856300,-500.0,0.0002,2]
[387860295,1758931856310,-500.0,0.0002,2]
[387860297,1758931856319,-500.0,0.0002,2]
[387860298,1758931856328,-500.0,0.0002,2]
[387860300,1758931856337,-500.0,0.0002,2]
[387860302,1758931856346,-500.0,0.0002,2]
[387860304,1758931856355,-500.0,0.0002,2]
[387860306,1758931856365,-2000.0,0.0002,2]
[387860308,1758931856374,-500.0,0.0002,2]
[387860310,1758931856383,-500.0,0.0002,2]
[387860312,1758931856392,-500.0,0.0002,2]
[387860314,1758931856401,-500.0,0.0002,2]
[387860316,1758931856414,-500.0,0.0002,2]
[387860318,1758931856423,-500.0,0.0002,2]
[387860319,1758931856432,-500.0,0.0002,2]
[387860321,1758931856442,-500.0,0.0002,2]
[387860323,1758931856451,-2043.0,0.0002,2]
[387860325,1758931856460,-1262.0,0.0002,2]
[387860327,1758931856470,-500.0,0.0002,2]
[387860329,1758931856479,-787.0,0.0002,2]
[387860331,1758931856489,-3396.0,0.0002,2]
[387860333,1758931856499,-603.0,0.0002,2]
[387860335,1758931856508,-1305.0,0.0002,2]
[387860337,1758931856517,-150.0,0.0002,2]
[387860339,1758931856528,-150.0,0.0002,2]
[387860341,1758931856537,-150.0,0.0002,2]
[387860343,1758931856547,-150.0,0.0002,2]
[387860345,1758931856556,-500.0,0.0002,2]
[387860347,1758931856565,-150.0,0.0002,2]
[387860349,1758931856574,-150.0,0.0002,2]
[387860350,1758931856585,-150.0,0.0002,2]
[387860352,1758931856595,-500.0,0.0002,2]
[387860354,1758931856604,-150.0,0.0002,2]
[387860356,1758931856614,-150.0,0.0002,2]
[387860358,1758931856623,-150.0,0.0002,2]
[387860360,1758931856633,-150.0,0.0002,2]
[387860362,1758931856643,-150.0,0.0002,2]
[387860364,1758931856653,-152.91826207,0.0002,2]
[387860366,1758931856662,-500.0,0.0002,2]
[387860368,1758931856672,-500.0,0.0002,2]
[387860370,1758931856682,-169.1,0.0002,2]
[387860372,1758931856692,-150.0,0.0002,2]
[387860374,1758931856702,-500.0,0.0002,2]
[387860376,1758931856712,-150.0,0.0002,2]
[387860378,1758931856722,-150.0,0.0002,2]
[387860380,1758931856731,-150.0,0.0002,2]
[387860382,1758931856741,-787.0,0.0002,2]
[387860384,1758931856751,-500.0,0.0002,2]
[387860386,1758931856761,-500.0,0.0002,2]
[387860388,1758931856771,-150.0,0.0002,2]
[387860390,1758931856781,-898.0,0.0002,2]
[387860392,1758931856790,-150.0,0.0002,2]
[387860394,1758931856800,-150.0,0.0002,2]
[387860396,1758931856809,-1262.0,0.0002,2]
[387860398,1758931856820,-268.70182568,0.0002,2]
[387860400,1758931856829,-150.0,0.0002,2]
[387860402,1758931856838,-200.0,0.0002,2]
[387860404,1758931856847,-152.27,0.0002,2]
[387860405,1758931856856,-152.88,0.0002,2]
[387860407,1758931856865,-152.35,0.0002,2]
[387860409,1758931856875,-152.16,0.0002,2]
[387860411,1758931856884,-516.45,0.0002,2]
[387860413,1758931856893,-150.22,0.0002,2]
[387860415,1758931856903,-152.83,0.0002,2]
[387860417,1758931856912,-527.92,0.0002,2]
[387860419,1758931856922,-152.56,0.0002,2]
[387860421,1758931856932,-151.46,0.0002,2]
[387860423,1758931856941,-151.85,0.0002,2]
[387860425,1758931856950,-152.98,0.0002,2]
[387860427,1758931856959,-9162.55603142,0.0002001,2]
[387860429,1758931856969,-5053.28381332,0.0002001,2]
[387860431,1758931856979,-5772.0,0.0002001,2]
[387860433,1758931856988,-229.01731612,0.00020022,2]
[387860435,1758931856997,-168.0,0.00020077,2]
[387860437,1758931857007,-152.2,0.00020084,2]
[387860439,1758931857017,-516.91207795,0.00020097,2]
[387860441,1758931857026,-150.36,0.00020097,2]
[387860443,1758931857036,-28674.15,0.000201,2]
[387860445,1758931857046,-3484.33435836,0.000201,2]
[387860447,1758931857055,-828.83211,0.0002015,2]
[387860448,1758931857064,-151.0,0.00020182,2]
[387860450,1758931857074,-18559.95,0.00020185,2]
[387860452,1758931857084,-269.0,0.0002019,2]
[387860454,1758931857093,-1089.0,0.00020224,2]
[387860456,1758931857103,-769.27,0.00020256,2]
[387860458,1758931857113,-269.0,0.00020264,2]
[387860460,1758931857122,-150.0,0.00020268,2]
[387860462,1758931857132,-150.0,0.00020268,2]
[387860464,1758931857141,-150.0,0.00020268,2]
[387860466,1758931857151,-150.0,0.00020268,2]
[387860468,1758931857160,-500.0,0.00020274,2]
[387860470,1758931857169,-150.0,0.00020274,2]
[387860472,1758931857179,-150.0,0.00020274,2]
[387860474,1758931857189,-150.0,0.00020274,2]
[387860476,1758931857198,-150.0,0.00020274,2]
[387860478,1758931857208,-500.0,0.00020274,2]
[387860480,1758931857217,-150.0,0.00020274,2]
[387860482,1758931857227,-150.0,0.00020274,2]
[387860484,1758931857236,-150.0,0.00020274,2]
[387860485,1758931857245,-500.0,0.00020274,2]
[387860487,1758931857256,-200.0,0.00020274,2]
[387860489,1758931857265,-150.0,0.00020274,2]
[387860491,1758931857275,-150.0,0.00020274,2]
[387860493,1758931857284,-500.0,0.00020274,2]
[387860495,1758931857293,-500.0,0.00020274,2]
[387860497,1758931857303,-157.24024219,0.00020274,2]
[387860499,1758931857313,-500.0,0.00020274,2]
[387860501,1758931857323,-150.0,0.00020274,2]
[387860503,1758931857332,-787.0,0.00020274,2]
[387860505,1758931857342,-500.0,0.00020274,2]
[387860507,1758931857352,-500.0,0.00020274,2]
[387860509,1758931857362,-150.0,0.00020274,2]
[387860511,1758931857372,-898.0,0.00020274,2]
[387860513,1758931857381,-150.0,0.00020274,2]
[387860515,1758931857391,-150.0,0.00020274,2]
[387860517,1758931857401,-1262.0,0.00020274,2]
[387860519,1758931857413,-150.0,0.00020274,2]
[387860521,1758931857423,-600.0,0.00020274,2]
[387860523,1758931857433,-168.0,0.00020297,2]
[387860525,1758931857442,-2474.93,0.00020334,2]
[387860527,1758931857452,-281.37,0.00020362,2]
[387860529,1758931857461,-5000.0,0.00020369,2]
[387860531,1758931857470,-269.0,0.00020396,2]
[387860532,1758931857479,-828.83211,0.000204,2]
[387860534,1758931857489,-5000.0,0.00020405,2]
[387860536,1758931857499,-326.31,0.00020415,2]
[387860537,1758931857508,-347.0,0.00020426,2]
[387860538,1758931857517,-3027.65207134,0.00020448,2]
[387860539,1758931857527,-25000.0,0.00020462,2]
[387860540,1758931857537,-1680.0,0.00020469,2]
[387860541,1758931857546,-3334.13,0.00020478,2]
[387860542,1758931857556,-168.0,0.0002049,2]
[387860543,1758931857565,-150.62,0.00020516,2]
[387860544,1758931857576,-25000.0,0.00020543,2]
[387860545,1758931857586,-269.0,0.00020544,2]
[387860546,1758931857595,-3041.40246382,0.00020545,2]
[387860547,1758931857604,-199.0,0.00020547,2]
[387860548,1758931857613,-500.0,0.00020548,2]
[387860549,1758931857623,-500.0,0.00020548,2]
[387860550,1758931857632,-18673.82,0.00020548,2]
[387860551,1758931857641,-251.40855621,0.00020548,2]
[387860552,1758931857651,-150.0,0.00020548,2]
[387860553,1758931857660,-150.0,0.00020548,2]
[387860554,1758931857670,-300.0,0.00020548,2]
[387860555,1758931857679,-215.00260996,0.00020548,2]
[387860556,1758931857688,-200.0,0.00020548,2]
[387860557,1758931857699,-150.0,0.00020548,2]
[387860558,1758931857709,-500.0,0.00020548,2]
[387860560,1758931857719,-150.0,0.00020548,2]
[387860561,1758931857729,-150.0,0.00020548,2]
[387860563,1758931857738,-500.0,0.00020548,2]
[387860565,1758931857748,-500.0,0.00020548,2]
[387860567,1758931857758,-500.0,0.00020548,2]
[387860569,1758931857767,-200.0,0.00020548,2]
[387860571,1758931857777,-787.0,0.00020548,2]
[387860573,1758931857787,-500.0,0.00020548,2]
[387860575,1758931857797,-150.0,0.00020548,2]
[387860577,1758931857807,-898.0,0.00020548,2]
[387860579,1758931857816,-150.0,0.00020548,2]
[387860581,1758931857826,-1262.0,0.00020548,2]
[387860583,1758931857835,-150.0,0.00020548,2]
[387860585,1758931857844,-191.51,0.00020548,2]
[387860587,1758931857853,-1100.0,0.00020548,2]
[387860589,1758931857863,-300.0,0.0002055,2]
[387860591,1758931857872,-2000.0,0.0002055,2]
[387860593,1758931857882,-250.0,0.0002055,2]
[387860595,1758931857891,-2500.0,0.0002055,2]
[387860597,1758931857901,-2500.0,0.00020551,2]
[387860599,1758931857910,-195.0,0.00020551,2]
[387860601,1758931857920,-300.0,0.00020551,2]
[387860603,1758931857929,-2500.0,0.00020551,2]
[387860605,1758931857938,-195.0,0.00020551,2]
[387860607,1758931857947,-500.0,0.00020551,2]
[387860609,1758931857958,-500.0,0.00020551,2]
[387860611,1758931857967,-500.0,0.00020551,2]
[387860613,1758931857977,-300.0,0.00020551,2]
[387860615,1758931857987,-2000.0,0.00020551,2]
[387860617,1758931857996,-250.0,0.00020551,2]
[387860619,1758931858005,-150.0,0.00020551,2]
[387860621,1758931858015,-300.0,0.00020551,2]
[387860623,1758931858024,-500.0,0.00020551,2]
[387860625,1758931858033,-500.0,0.00020551,2]
[387860627,1758931858043,-300.0,0.00020551,2]
[387860629,1758931858053,-975.57,0.00020556,2]
[387860631,1758931858062,-5000.0,0.00020577,2]
[387860633,1758931858071,-1626.46,0.00020581,2]
[387860635,1758931858081,-5000.0,0.00020581,2]
[387860637,1758931858091,-168.0,0.00020596,2]
[387860639,1758931858102,-5000.0,0.00020605,2]
[387860641,1758931858112,-180.0,0.00020605,2]
[387860643,1758931858121,-150.61,0.00020634,2]
[387860645,1758931858131,-5000.0,0.00020647,2]
[387860647,1758931858140,-828.83211,0.0002065,2]
[387860649,1758931858150,-168.0,0.00020695,2]
[387860651,1758931858160,-28674.15,0.000207,2]
[387860653,1758931858169,-168.0,0.00020707,2]
[387860655,1758931858179,-168.0,0.00020797,2]
[387860657,1758931858188,-168.0,0.00020798,2]
[387860659,1758931858197,-600.0,0.000208,3]
[387860661,1758931858207,-5000.0,0.00020812,2]
[387860663,1758931858216,-500.0,0.00020822,2]
[387860665,1758931858225,-500.0,0.00020822,2]
[387860667,1758931858235,-150.0,0.00020822,2]
[387860669,1758931858244,-150.0,0.00020822,2]
[387860671,1758931858253,-163.04073064,0.00020822,2]
[387860673,1758931858263,-500.0,0.00020822,2]
[387860675,1758931858272,-150.0,0.00020822,2]
[387860677,1758931858281,-254.41685611,0.00020822,2]
[387860679,1758931858291,-500.0,0.00020822,2]
[387860681,1758931858301,-500.0,0.00020822,2]
[387860683,1758931858310,-500.0,0.00020822,2]
[387860685,1758931858320,-787.0,0.00020822,2]
[387860687,1758931858329,-500.0,0.00020822,2]
[387860689,1758931858339,-150.0,0.00020822,2]
[387860691,1758931858348,-898.0,0.00020822,2]
[387860693,1758931858357,-1262.0,0.00020822,2]
[387860695,1758931858367,-287.01275339,0.00020822,2]
[387860697,1758931858376,-168.0,0.00020841,2]
[387860699,1758931858385,-5000.0,0.00020859,2]
[387860701,1758931858394,-180.0,0.00020881,2]
[387860703,1758931858404,-5000.0,0.00020887,2]
[387860705,1758931858418,-2820.12,0.00020894,2]
[387860707,1758931858427,-158.22622828,0.000209,2]
[387860709,1758931858436,-301.31435989,0.000209,2]
[387860711,1758931858446,-828.83211,0.000209,2]
[387860713,1758931858455,-215.87702933,0.000209,2]
[387860715,1758931858464,-168.0,0.00020922,2]
[387860717,1758931858474,-328.88,0.00020925,2]
[387860719,1758931858484,-2518.95,0.00020956,2]
[387860721,1758931858493,-500.0,0.00020973,2]
[387860723,1758931858503,-500.0,0.00020973,2]
[387860725,1758931858512,-500.0,0.00020973,2]
[387860726,1758931858521,-412.45915899,0.00020973,2]
[387860728,1758931858531,-500.0,0.00020973,2]
[387860730,1758931858540,-500.0,0.00020973,2]
[387860732,1758931858549,-500.0,0.00020973,2]
[387860735,1758931858558,-522.24093639,0.00020973,2]
[387860737,1758931858568,-500.0,0.00020973,2]
[387860738,1758931858578,-500.0,0.00020973,2]
[387860740,1758931858587,-546.84527779,0.00020973,2]
[387860742,1758931858597,-169.36192923,0.00020973,2]
[387860745,1758931858606,-409.63052747,0.00020973,2]
[387860746,1758931858616,-500.0,0.00020973,2]
[387860748,1758931858625,-500.0,0.00020973,2]
[387860751,1758931858635,-500.0,0.00020973,2]
[387860769,1758931858794,-500.0,0.00020973,2]
[387860772,1758931858821,-500.0,0.00020973,2]
[387860774,1758931858830,-500.0,0.00020973,2]
[387860776,1758931858841,-500.0,0.00020973,2]
[387860778,1758931858850,-500.8314279,0.00020973,2]
[387860780,1758931858859,-501.694095,0.00020973,2]
[387860782,1758931858868,-339.2902176,0.00020973,2]
[387860784,1758931858878,-500.0,0.00020973,2]
[387860786,1758931858887,-500.0,0.00020973,2]
[387860788,1758931858896,-500.4621702,0.00020973,2]
[387860790,1758931858906,-500.0,0.00020973,2]
[387860792,1758931858916,-500.0,0.00020973,2]
[387860794,1758931858926,-278.00191903,0.00020973,2]
[387860796,1758931858935,-150.0,0.00020973,2]
[387860798,1758931858944,-500.0,0.00020973,2]
[387860800,1758931858953,-500.0,0.00020973,2]
[387860802,1758931858963,-500.33687051,0.00020973,2]
[387860804,1758931858972,-500.0,0.00020973,2]
[387860806,1758931858981,-161.07748899,0.00020973,2]
[387860808,1758931858991,-500.0,0.00020973,2]
[387860810,1758931859000,-500.0,0.00020973,2]
[387860812,1758931859009,-500.49942284,0.00020973,2]
[387860814,1758931859020,-163.08659351,0.00020973,2]
[387860816,1758931859029,-528.26558219,0.00020973,2]
[387860818,1758931859038,-500.0,0.00020973,2]
[387860820,1758931859047,-500.0,0.00020973,2]
[387860822,1758931859056,-500.0,0.00020973,2]
[387860824,1758931859065,-269.0,0.00020981,2]
[387860826,1758931859075,-1000.0,0.00020986,2]
[387860827,1758931859084,-3027.65207134,0.00020996,2]
[387860830,1758931859093,-154.01114444,0.00020997,2]
[387860832,1758931859103,-5000.0,0.00020999,2]
[387860833,1758931859112,-13215.09076464,0.00021,2]
[387860835,1758931859121,-98880.78300405,0.00021,2]
[387860837,1758931859131,-181788.14990059,0.00021,2]
[387860839,1758931859140,-120629.52743345,0.00021,2]
[387860842,1758931859156,-602.45166163,0.00021,2]
[387860844,1758931859167,-1577.10219932,0.00021,2]
[387860847,1758931859178,-411.75610827,0.00021,2]
[387860849,1758931859188,-12206.76663072,0.00021,2]
[387860851,1758931859199,-400.13021298,0.00021,2]
[387861490,1758931865480,-418.79377424,0.000197,2]
[387861493,1758931865697,-581.20622576,0.000197,2]
[387861496,1758931865707,-516.33748054,0.00021,2]
[387861498,1758931865719,-597.0,0.00021,2]
[387861500,1758931865730,-1612.14977291,0.00021,2]
[387861507,1758931865787,-4398.55047356,0.00021,2]
[387861509,1758931865799,-2813.85228289,0.00021,2]
[387861522,1758931865907,-484.30291347,0.00021,2]
[387861524,1758931865922,-1286.86674357,0.00021,2]
[387861534,1758931866003,500.0,0.00030136,120]
[387861553,1758931866171,500.0,0.00030136,120]
[387861572,1758931866353,500.0,0.00030136,120]
[387861591,1758931866525,500.0,0.00030136,120]
[387861613,1758931866725,500.0,0.00030136,120]
[387861693,1758931867511,-2152.95080009,0.00021,2]
[387861708,1758931867636,-13530.12376347,0.00021,2]
[387861710,1758931867646,-180.0,0.00021,2]
[387861712,1758931867656,-24991.98162254,0.00021,2]
[387861714,1758931867665,-5000.0,0.00021,2]
[387861716,1758931867675,-151.0,0.00021,2]
[387861718,1758931867685,-151.0,0.00021,2]
[387861720,1758931867695,-151.0,0.00021,2]
[387861722,1758931867704,-156.817988,0.00021,2]
[387861724,1758931867714,-151.0,0.00021,2]
[387861726,1758931867724,-159.88155,0.00021,2]
[387861728,1758931867734,-151.0,0.00021,2]
[387861730,1758931867744,-151.0,0.00021,2]
[387861732,1758931867753,-151.0,0.00021,2]
[387861734,1758931867763,-151.0,0.00021,2]
[387861736,1758931867772,-151.0,0.00021,2]
[387861738,1758931867783,-541.10707768,0.00021,2]
[387861740,1758931867793,-151.0,0.00021,2]
[387861742,1758931867802,-151.0,0.00021,2]
[387861744,1758931867811,-154.375887,0.00021,2]
[387861746,1758931867821,-151.0,0.00021,2]
[387861748,1758931867830,-151.0,0.00021,2]
[387861750,1758931867839,-277.00424871,0.00021,2]
[387861752,1758931867848,-151.0,0.00021,2]
[387861754,1758931867858,-216.245863,0.00021,2]
[387861756,1758931867867,-216.245863,0.00021,2]
[387861758,1758931867877,-151.0,0.00021,2]
[387861760,1758931867886,-151.0,0.00021,2]
[387861762,1758931867896,-151.0,0.00021,2]
[387861764,1758931867905,-874.925784,0.00021,2]
[387861766,1758931867914,-874.925784,0.00021,2]
[387861768,1758931867923,-874.925784,0.00021,2]
[387861770,1758931867933,-202.562782,0.00021,2]
[387861772,1758931867943,-151.0,0.00021,2]
[387861774,1758931867952,-151.0,0.00021,2]
[387861776,1758931867962,-151.0,0.00021,2]
[387861778,1758931867971,-151.0,0.00021,2]
[387861780,1758931867980,-151.0,0.00021,2]
[387861782,1758931867989,-151.0,0.00021,2]
[387861784,1758931867999,-151.0,0.00021,2]
[387861786,1758931868009,-151.0,0.00021,2]
[387861788,1758931868018,-178.408741,0.00021,2]
[387861790,1758931868027,-151.0,0.00021,2]
[387861793,1758931868037,-178.408741,0.00021,2]
[387861795,1758931868046,-178.408741,0.00021,2]
[387861797,1758931868056,-178.408741,0.00021,2]
[387861799,1758931868065,-151.0,0.00021,2]
[387861801,1758931868075,-157.03888,0.00021,2]
[387861803,1758931868084,-151.0,0.00021,2]
[387861805,1758931868093,-151.0,0.00021,2]
[387861807,1758931868102,-151.0,0.00021,2]
[387861809,1758931868111,-151.0,0.00021,2]
[387861811,1758931868120,-151.0,0.00021,2]
[387861813,1758931868130,-151.0,0.00021,2]
[387861815,1758931868140,-151.0,0.00021,2]
[387861817,1758931868149,-156.047205,0.00021,2]
[387861819,1758931868158,-151.0,0.00021,2]
[387861821,1758931868168,-151.0,0.00021,2]
[387861823,1758931868177,-151.0,0.00021,2]
[387861825,1758931868186,-151.0,0.00021,2]
[387861827,1758931868196,-151.0,0.00021,2]
[387861829,1758931868205,-151.0,0.00021,2]